bitfinex/quotes_SOLUSD_20250602
["timestamp","ask_amount","ask_price","bid_price","bid_amount"]
[1748837549874,49.36,155.64,155.63,15.74449198]
[1748837550670,49.36,155.64,155.63,9.31899562]
[1748837550879,49.36,155.64,155.62,15.74482172]
[1748837551669,49.36,155.64,155.61,9.31899562]
[1748837551877,49.36,155.64,155.6,6.42673521]
[1748837552074,49.36,155.64,155.61,9.31899562]
[1748837552577,49.36,155.64,155.62,9.31899562]
[1748837555552,10.14,155.64,155.63,9.31899562]
[1748837555994,49.34,155.64,155.63,9.31899562]
[1748837556162,49.34,155.64,155.63,15.74449198]
[1748837556365,10.14,155.64,155.63,15.74449198]
[1748837556674,39.2,155.64,155.63,15.74449198]
[1748837556885,39.2,155.65,155.63,15.74449198]
[1748837557059,39.2,155.65,155.64,9.31899562]
[1748837557262,10.12,155.68,155.64,9.31899562]
[1748837557575,39.2,155.65,155.64,9.31899562]
[1748837558175,39.2,155.65,155.64,15.74407914]
[1748837559880,10.12,155.68,155.64,31.80678795]
[1748837560072,10.12,155.68,155.67,15.74284093]
[1748837560268,49.32,155.68,155.67,15.74284093]
[1748837562460,10.12,155.68,155.67,15.74284093]
[1748837562688,49.32,155.68,155.67,15.74284093]
[1748837563079,10.12,155.68,155.67,15.74284093]
[1748837563283,49.32,155.68,155.67,15.74284093]
[1748837565090,49.32,155.68,155.67,6.42384531]
[1748837565290,49.32,155.68,155.66,15.74311716]
[1748837565586,49.32,155.68,155.67,9.31899562]
[1748837567187,49.32,155.68,155.67,15.74284093]
[1748837569495,49.32,155.68,155.67,9.31899562]
[1748837570184,49.32,155.68,155.67,15.74284093]
[1748837572690,49.32,155.68,155.66,15.74311032]
[1748837573279,49.32,155.68,155.67,9.31899562]
[1748837575589,49.32,155.68,155.67,15.74284093]
[1748837575791,49.32,155.68,155.66,15.74309541]
[1748837579306,49.32,155.68,155.67,9.31899562]
[1748837580279,10.12,155.68,155.67,15.74284093]
[1748837580479,10.12,155.72,155.67,69.07843669]
[1748837580707,10.12,155.72,155.71,9.31899562]
[1748837581114,49.3,155.72,155.71,9.31899562]
[1748837582185,49.3,155.72,155.7,15.74122411]
[1748837582382,49.3,155.72,155.69,9.31899562]
[1748837583195,49.3,155.72,155.69,14.51659034]
[1748837584404,49.3,155.72,155.69,20.93924252]
[1748837584790,49.3,155.72,155.71,14.51659034]
[1748837585785,10.12,155.72,155.71,14.51659034]
[1748837586408,49.3,155.72,155.71,14.51659034]
[1748837586605,10.12,155.72,155.71,20.93878544]
[1748837586801,49.3,155.72,155.71,20.93878544]
[1748837588987,10.12,155.72,155.71,20.93878544]
[1748837589295,49.3,155.72,155.71,20.93878544]
[1748837592214,49.3,155.72,155.7,20.93909855]
[1748837593191,49.3,155.72,155.71,14.51659034]
[1748837593388,49.3,155.72,155.7,6.42250821]
[1748837593591,49.3,155.72,155.7,20.93909855]
[1748837594406,49.3,155.72,155.68,20.93971559]
[1748837596708,63.81659034,155.72,155.67,20.94031391]
[1748837597309,63.81659034,155.72,155.67,6.42372357]
[1748837597595,63.81659034,155.72,155.67,20.94031391]
[1748837598113,49.3,155.72,155.68,14.51659034]
[1748837598317,49.3,155.72,155.69,14.51659034]
[1748837600850,49.3,155.72,155.7,14.51659034]
[1748837601339,10.12,155.72,155.7,14.51659034]
[1748837601639,10.12,155.72,155.71,14.51659034]
[1748837601816,49.3,155.72,155.71,14.51659034]
[1748837603241,10.12,155.72,155.71,20.93878544]
[1748837603572,49.3,155.72,155.71,20.93878544]
[1748837605115,10.12,155.72,155.71,20.93878544]
[1748837605516,49.3,155.72,155.71,20.93878544]
[1748837608115,49.28,155.72,155.71,20.93878544]
[1748837610922,10.12,155.72,155.71,20.93878544]
[1748837611129,49.28,155.72,155.71,20.93878544]
[1748837611930,49.28,155.72,155.71,14.51659034]
[1748837614021,49.28,155.72,155.71,20.93878544]
[1748837619444,39.16,155.72,155.71,36.9942732]
[1748837620253,10.1,155.76,155.71,36.9942732]
[1748837620550,39.16,155.75,155.71,22.47768286]
[1748837620952,39.16,155.74,155.71,22.47768286]
[1748837621325,39.16,155.74,155.71,16.05548776]
[1748837621530,39.16,155.74,155.73,14.51659034]
[1748837622945,39.16,155.74,155.73,20.93796066]
[1748837624538,39.16,155.74,155.73,6.42137032]
[1748837625144,39.16,155.74,155.73,20.93796066]
[1748837629650,10.1,155.76,155.73,20.93796066]
[1748837629826,39.16,155.74,155.71,16.05548776]
[1748837630032,39.16,155.74,155.73,14.51659034]
[1748837631353,39.16,155.74,155.73,15.70516696]
[1748837631558,10.1,155.76,155.73,31.75859276]
[1748837631739,39.16,155.75,155.73,22.47479612]
[1748837631938,39.16,155.75,155.74,9.28379664]
[1748837632840,10.1,155.76,155.74,9.28379664]
[1748837633042,12.5,155.77,155.75,35.28379664]
[1748837633244,51.66,155.77,155.76,20.9159293]
[1748837634168,12.5,155.77,155.76,35.41172507]
[1748837643268,12.5,155.77,155.76,54.06137393]
[1748837644564,12.5,155.77,155.76,61.41172507]
[1748837648968,156.97852757,155.86,155.78,26.0]
[1748837648969,10.1,155.84,155.78,26.0]
[1748837649271,39.14,155.83,155.78,26.0]
[1748837649876,10.1,155.84,155.79,22.46614031]
[1748837650083,39.14,155.82,155.79,22.46614031]
[1748837650264,39.14,155.82,155.81,14.49579577]
[1748837650789,10.1,155.84,155.81,14.49579577]
[1748837651082,39.14,155.82,155.81,26.0]
[1748837651252,39.14,155.83,155.81,26.0]
[1748837651967,10.1,155.84,155.82,6.4176614]
[1748837652284,10.1,155.84,155.83,14.49579577]
[1748837652461,49.24,155.84,155.83,14.49579577]
[1748837654493,49.24,155.84,155.83,20.91304533]
[1748837655283,49.22,155.84,155.83,20.91304533]
[1748837656797,49.22,155.84,155.83,14.49579577]
[1748837658081,49.22,155.84,155.83,20.91304533]
[1748837661272,49.22,155.84,155.83,9.2719249]
[1748837663625,49.22,155.84,155.83,15.68917446]
[1748837664675,39.12,155.84,155.83,15.68917446]
[1748837667079,6.0005,155.87,155.83,15.68917446]
[1748837667304,6.0005,155.87,155.86,9.2719249]
[1748837667607,45.1205,155.87,155.86,9.2719249]
[1748837672907,39.12,155.87,155.86,15.68793927]
[1748837673227,10.08,155.88,155.86,15.68793927]
[1748837673419,39.12,155.87,155.86,6.41601437]
[1748837673724,39.12,155.87,155.85,6.41642605]
[1748837674610,39.12,155.87,155.86,9.2719249]
[1748837675387,10.08,155.88,155.86,9.2719249]
[1748837675710,10.08,155.88,155.85,6.41642605]
[1748837675711,10.08,155.88,155.87,9.2719249]
[1748837675898,49.2,155.88,155.87,9.2719249]
[1748837677785,10.08,155.88,155.87,9.2719249]
[1748837678206,49.2,155.88,155.87,9.2719249]
[1748837680009,6.4054,155.91,155.87,15.68752764]
[1748837680208,6.4054,155.91,155.9,9.2719249]
[1748837680383,55.6054,155.91,155.89,9.2719249]
[1748837681714,39.12,155.9,155.89,9.2719249]
[1748837681895,16.4854,155.91,155.89,9.2719249]
[1748837682299,39.12,155.9,155.89,9.2719249]
[1748837684217,39.12,155.9,155.89,15.68670455]
[1748837685312,39.1,155.9,155.89,15.68670455]
[1748837688896,39.1,155.9,155.84,26.0]
[1748837689222,39.1,155.9,155.89,9.2719249]
[1748837693296,39.1,155.9,155.88,9.2719249]
[1748837693493,39.1,155.9,155.86,6.41591746]
[1748837693723,39.1,155.9,155.87,9.2719249]
[1748837693937,39.1,155.9,155.88,9.2719249]
[1748837695623,39.1,155.9,155.88,15.68709798]
[1748837695931,10.08,155.91,155.89,9.2719249]
[1748837696100,10.08,155.91,155.9,9.2719249]
[1748837696302,49.18,155.91,155.89,9.2719249]
[1748837697921,10.08,155.91,155.89,15.68661248]
[1748837698112,39.1,155.9,155.89,15.68661248]
[1748837701625,10.08,155.91,155.89,15.68661248]
[1748837701825,10.08,155.91,155.9,9.2719249]
[1748837702220,49.18,155.91,155.9,9.2719249]
[1748837702419,49.18,155.91,155.9,15.68629308]
[1748837702640,10.08,155.95,155.9,57.72221354]
[1748837702836,39.1,155.92,155.9,48.45028864]
[1748837703044,39.1,155.92,155.91,9.2719249]
[1748837704541,10.08,155.95,155.92,6.4135454]
[1748837704737,39.1,155.94,155.92,6.4135454]
[1748837707751,39.1,155.93,155.92,6.4135454]
[1748837708717,39.1,155.93,155.92,52.7731699]
[1748837708924,39.1,155.93,155.92,15.6854703]
[1748837709406,10.08,155.95,155.92,15.6854703]
[1748837709407,10.08,155.95,155.92,68.80703341]
[1748837709610,10.08,155.95,155.94,9.2719249]
[1748837710025,10.08,155.99,155.95,6.41231163]
[1748837710317,10.08,155.99,155.98,9.2719249]
[1748837710714,49.16,155.99,155.98,9.2719249]
[1748837712040,39.08,155.99,155.98,15.68300324]
[1748837712212,10.08,156.03,155.98,15.68300324]
[1748837712409,10.08,156.03,156.02,9.2719249]
[1748837712609,49.16,156.03,156.02,9.2719249]
[1748837713235,10.08,156.03,156.02,14.44936701]
[1748837713531,49.16,156.03,156.02,14.44936701]
[1748837713733,10.08,156.07,156.02,14.44936701]
[1748837714034,39.08,156.06,156.03,26.0]
[1748837714217,39.08,156.06,156.04,6.40861317]
[1748837714417,10.08,156.07,156.04,6.40861317]
[1748837714719,39.08,156.06,156.04,6.40861317]
[1748837715111,10.08,156.07,156.05,14.44936701]
[1748837715315,10.08,156.07,156.06,14.44936701]
[1748837715536,49.16,156.07,156.04,6.40861317]
[1748837715841,10.08,156.07,156.06,14.44936701]
[1748837716215,49.16,156.07,156.06,14.44936701]
[1748837716832,49.16,156.07,156.06,20.85715888]
[1748837717030,10.08,156.07,156.06,20.85715888]
[1748837717230,49.16,156.07,156.06,20.85715888]
[1748837720523,10.08,156.07,156.06,20.85715888]
[1748837720722,49.14,156.07,156.06,20.85715888]
[1748837720919,10.08,156.07,156.06,20.85715888]
[1748837721122,49.14,156.07,156.06,20.85715888]
[1748837722639,49.14,156.07,156.06,14.44936701]
[1748837723225,49.14,156.07,156.06,20.85715888]
[1748837723432,49.14,156.07,156.0,1.5612]
[1748837723750,63.58936701,156.07,156.03,14.44936701]
[1748837724756,49.14,156.07,156.03,14.44936701]
[1748837725119,49.14,156.07,156.04,14.44936701]
[1748837725318,55.5474046,156.07,156.04,14.44936701]
[1748837725551,49.14,156.07,156.04,14.44936701]
[1748837727015,69.99683373,156.07,156.01,32.40970309]
[1748837727216,55.54746672,156.07,156.03,14.44936701]
[1748837727437,49.14,156.07,156.04,14.44936701]
[1748837731025,49.14,156.07,156.06,14.44936701]
[1748837732421,10.08,156.07,156.06,14.44936701]
[1748837732621,49.14,156.07,156.06,14.44936701]
[1748837737038,49.14,156.07,156.06,20.85715888]
[1748837737356,49.14,156.07,156.06,14.44936701]
[1748837738359,49.14,156.07,156.06,20.85715888]
[1748837738674,49.14,156.07,156.06,14.44936701]
[1748837739037,49.14,156.07,156.02,6.40943468]
[1748837739238,49.14,156.07,156.06,14.44936701]
[1748837740135,69.99684194,156.07,156.01,32.40970283]
[1748837740339,14.44936701,156.06,156.02,14.44936701]
[1748837740563,6.40820249,156.05,156.01,14.44936701]
[1748837740772,39.04,156.04,156.01,14.44936701]
[1748837742062,39.04,156.04,156.02,14.44936701]
[1748837743761,45.44862506,156.04,156.01,14.44936701]
[1748837745058,39.04,156.04,156.01,14.44936701]
[1748837746356,45.448716,156.04,156.01,14.44936701]
[1748837746951,59.89808301,156.04,156.0,14.44936701]
[1748837750563,45.448716,156.04,156.0,14.44936701]
[1748837750765,59.89808301,156.04,156.0,14.44936701]
[1748837752539,39.04,156.04,156.01,14.44936701]
[1748837753052,39.04,156.04,156.02,14.44936701]
[1748837753451,39.06,156.03,156.02,14.44936701]
[1748837755165,39.06,156.03,156.01,14.44936701]
[1748837755547,39.06,156.03,156.0,14.44936701]
[1748837756167,39.06,156.03,156.01,14.44936701]
[1748837759956,39.06,156.03,156.02,14.44936701]
[1748837761051,39.06,156.03,156.01,14.44936701]
[1748837761255,39.06,156.03,156.0,14.44936701]
[1748837762168,39.06,156.03,156.01,14.44936701]
[1748837762655,39.06,156.03,156.02,14.44936701]
[1748837763171,49.12,156.04,156.02,14.44936701]
[1748837763466,49.12,156.04,156.03,14.44936701]
[1748837764269,10.06,156.04,156.03,14.44936701]
[1748837764471,10.06,156.04,155.98,26.0]
[1748837764658,10.06,156.04,156.01,14.44936701]
[1748837765773,24.50936701,156.04,155.99,40.44936701]
[1748837766867,30.91810571,156.04,156.0,14.44936701]
[1748837768286,16.4687387,156.04,156.0,14.44936701]
[1748837768478,10.06,156.04,156.01,14.44936701]
[1748837768969,16.46866778,156.04,156.0,14.44936701]
[1748837769662,10.06,156.04,156.0,14.44936701]
[1748837771175,16.46867729,156.04,156.0,14.44936701]
[1748837772557,16.46867729,156.04,156.01,14.44936701]
[1748837772761,10.06,156.04,156.0,14.44936701]
[1748837773078,10.06,156.04,156.01,14.44936701]
[1748837776166,39.06,156.03,156.02,14.44936701]
[1748837777083,39.06,156.03,156.01,14.44936701]
[1748837777867,39.06,156.03,156.01,20.85909776]
[1748837778063,10.06,156.04,156.02,14.44936701]
[1748837778269,49.12,156.04,156.03,14.44936701]
[1748837779088,10.06,156.04,156.03,14.44936701]
[1748837780185,10.06,156.04,156.03,20.85839091]
[1748837781871,39.06,156.06,156.03,20.85839091]
[1748837782062,39.06,156.06,156.03,6.4090239]
[1748837782258,39.06,156.06,156.05,14.44936701]
[1748837782470,10.06,156.08,156.03,6.4090239]
[1748837782671,14.44936701,156.06,155.98,6.41107834]
[1748837782897,14.44936701,156.06,156.01,14.44936701]
[1748837783264,14.44936701,156.05,156.01,14.44936701]
[1748837783467,14.44936701,156.06,156.01,14.44936701]
[1748837783771,6.40820249,156.05,156.01,14.44936701]
[1748837783971,20.85730756,156.06,156.01,14.44936701]
[1748837784472,20.85730756,156.06,156.0,6.40995929]
[1748837784669,20.85730756,156.06,156.01,14.44936701]
[1748837784869,22.37940756,156.06,156.01,14.44936701]
[1748837785083,7.93004055,156.06,156.0,14.44936701]
[1748837785478,14.44936701,156.05,156.01,14.44936701]
[1748837785687,14.44936701,156.05,156.0,14.44936701]
[1748837785688,20.85772513,156.05,156.0,14.44936701]
[1748837786673,10.06,156.04,156.0,14.44936701]
[1748837786873,39.06,156.03,156.0,14.44936701]
[1748837787083,39.06,156.03,156.0,20.85953879]
[1748837787573,39.06,156.03,156.01,14.44936701]
[1748837791776,45.46916129,156.03,155.98,6.4109281]
[1748837792089,14.44936701,156.01,155.95,6.41231163]
[1748837792297,45.46916129,156.03,155.89,7.7349]
[1748837792298,14.44936701,155.97,155.89,7.7349]
[1748837792475,39.1,155.96,155.92,14.44936701]
[1748837792796,39.1,155.96,155.91,40.44936701]
[1748837792797,53.54936701,155.96,155.91,40.44936701]
[1748837793706,53.54936701,155.96,155.92,14.44936701]
[1748837794381,39.1,155.96,155.92,14.44936701]
[1748837795597,39.1,155.96,155.94,14.44936701]
[1748837795808,39.1,155.96,155.91,32.41395676]
[1748837795979,39.1,155.96,155.93,14.44936701]
[1748837797104,39.1,155.96,155.93,20.86239945]
[1748837800115,39.1,155.96,155.94,14.44936701]
[1748837802189,10.06,155.97,155.94,14.44936701]
[1748837802500,39.06,155.96,155.94,20.86202007]
[1748837803688,10.06,155.97,155.94,20.86202007]
[1748837804011,39.06,155.96,155.94,20.86202007]
[1748837805284,14.44936701,155.95,155.9,14.44936701]
[1748837806188,53.50936701,155.96,155.91,14.44936701]
[1748837806499,39.06,155.95,155.93,14.44936701]
[1748837808502,16.4715719,155.97,155.93,14.44936701]
[1748837808706,39.06,155.96,155.93,14.44936701]
[1748837813592,39.06,155.96,155.94,14.44936701]
[1748837814702,10.06,155.97,155.94,14.44936701]
[1748837814894,39.08,155.96,155.94,14.44936701]
[1748837817303,45.49192172,155.96,155.93,14.44936701]
[1748837817493,39.08,155.96,155.94,14.44936701]
[1748837819409,10.06,155.97,155.94,14.44936701]
[1748837819712,39.08,155.96,155.94,14.44936701]
[1748837821187,49.14,155.96,155.94,14.44936701]
[1748837822495,49.14,155.96,155.93,14.44936701]
[1748837823705,49.14,155.96,155.94,14.44936701]
[1748837823901,39.08,155.95,155.94,14.44936701]
[1748837828397,10.06,155.96,155.94,20.86208985]
[1748837828737,10.06,155.96,155.95,14.44936701]
[1748837830103,10.06,155.96,155.95,20.86167864]
[1748837831021,39.06,155.97,155.95,20.86167864]
[1748837831235,39.06,155.97,155.96,14.44936701]
[1748837832324,10.06,155.99,155.96,14.44936701]
[1748837832503,49.12,155.99,155.98,14.44936701]
[1748837832701,10.06,155.99,155.98,14.44936701]
[1748837833008,39.06,156.01,155.98,14.44936701]
[1748837833203,39.06,156.01,156.0,14.44936701]
[1748837835321,39.06,156.01,156.0,20.85962342]
[1748837835630,10.06,156.03,156.0,20.85962342]
[1748837835842,49.12,156.03,156.02,14.44936701]
[1748837837421,10.06,156.03,156.02,14.44936701]
[1748837837621,49.12,156.03,156.02,14.44936701]
[1748837837797,92.3,156.04,156.02,14.44936701]
[1748837838002,131.36,156.04,156.03,14.44936701]
[1748837839402,39.06,156.04,156.03,14.44936701]
[1748837840304,10.06,156.05,156.03,20.85839091]
[1748837840522,49.18,156.05,156.04,14.44936701]
[1748837841604,10.06,156.05,156.04,20.85798018]
[1748837841806,39.12,156.07,156.04,20.85798018]
[1748837842112,39.14,156.08,156.06,14.44936701]
[1748837842306,39.14,156.08,156.07,14.44936701]
[1748837843509,39.12,156.08,156.07,14.44936701]
[1748837843747,10.06,156.09,156.07,14.44936701]
[1748837843914,39.12,156.08,156.07,14.44936701]
[1748837845747,39.12,156.08,156.06,14.44936701]
[1748837845925,39.12,156.08,156.05,14.44936701]
[1748837846819,10.06,156.09,156.07,14.44936701]
[1748837847022,49.16,156.09,156.08,14.44936701]
[1748837847224,10.06,156.09,156.05,26.0]
[1748837847425,10.06,156.09,156.08,14.44936701]
[1748837848404,6.4127,156.13,156.08,35.3057048]
[1748837848623,39.1,156.14,156.12,14.44936701]
[1748837848823,39.1,156.14,156.11,14.44936701]
[1748837849214,30.91353306,156.15,156.11,14.44936701]
[1748837849425,39.1,156.13,156.1,14.44936701]
[1748837850624,59.95434422,156.13,156.09,14.44936701]
[1748837850821,59.95434422,156.13,156.08,14.44936701]
[1748837851217,14.44936701,156.12,156.08,14.44936701]
[1748837851944,14.44936701,156.1,156.06,14.44936701]
[1748837852121,14.44936701,156.1,156.01,1.5616]
[1748837852122,49.16,156.09,156.01,1.5616]
[1748837852323,14.44936701,156.06,156.02,20.85880169]
[1748837852520,39.1,156.05,156.03,14.44936701]
[1748837858618,39.1,156.05,156.01,6.4097368]
[1748837858833,10.08,156.04,156.01,14.44936701]
[1748837859526,10.08,156.04,156.02,14.44936701]
[1748837860241,10.08,156.04,156.01,14.44936701]
[1748837862658,16.48864704,156.04,156.01,14.44936701]
[1748837862853,30.93801405,156.04,155.99,14.44936701]
[1748837863840,30.93801405,156.04,155.97,14.44936701]
[1748837863841,14.44936701,156.02,155.97,14.44936701]
[1748837864158,39.04,156.01,155.98,14.44936701]
[1748837865063,59.89927219,156.01,155.96,6.41172324]
[1748837865274,59.89927219,156.01,155.97,14.44936701]
[1748837865553,14.44936701,156.0,155.96,14.44936701]
[1748837865758,10.08,155.99,155.96,14.44936701]
[1748837866545,10.08,155.99,155.97,14.44936701]
[1748837867139,10.08,155.99,155.98,14.44936701]
[1748837876292,10.08,155.99,155.97,6.41121124]
[1748837876446,10.08,155.99,155.98,14.44936701]
[1748837879082,10.08,155.99,155.98,20.86044535]
[1748837879285,10.08,155.99,155.98,20.36044535]
[1748837882005,150.5623,156.05,155.98,20.36044535]
[1748837882170,49.12,156.04,156.01,14.44936701]
[1748837882372,49.12,156.04,156.0,14.44936701]
[1748837883890,49.12,156.04,156.01,14.44936701]
[1748837884387,39.06,156.03,156.01,14.44936701]
[1748837885594,39.06,156.02,156.01,20.85918959]
[1748837885772,39.06,156.02,156.01,14.44936701]
[1748837886671,39.06,156.03,156.01,14.44936701]
[1748837886978,39.06,156.03,156.0,14.44936701]
[1748837887877,10.06,156.04,156.0,14.44936701]
[1748837888200,39.06,156.03,156.01,14.44936701]
[1748837889402,39.06,156.03,156.02,14.44936701]
[1748837890065,49.12,156.04,156.02,14.44936701]
[1748837890267,49.12,156.04,156.03,14.44936701]
[1748837890466,10.06,156.04,156.03,14.44936701]
[1748837892401,10.06,156.04,156.03,20.85839091]
[1748837892914,10.06,156.04,156.03,14.44936701]
[1748837893807,10.06,156.04,156.02,14.44936701]
[1748837894109,10.06,156.04,156.01,14.44936701]
[1748837894308,14.44936701,156.02,155.97,14.44936701]
[1748837894511,16.46872662,156.04,155.97,14.44936701]
[1748837894512,53.50936701,156.01,155.97,14.44936701]
[1748837894702,14.44936701,155.99,155.94,14.44936701]
[1748837894886,10.06,155.98,155.94,14.44936701]
[1748837895092,39.06,155.97,155.94,14.44936701]
[1748837896098,39.06,155.97,155.94,20.86204778]
[1748837897096,39.06,155.97,155.95,14.44936701]
[1748837899799,39.06,155.97,155.96,14.44936701]
[1748837901907,10.06,155.98,155.96,20.86126749]
[1748837902106,10.06,155.98,155.97,14.44936701]
[1748837903893,10.06,155.98,155.97,20.86085639]
[1748837904319,10.06,155.98,155.97,14.44936701]
[1748837905200,10.06,155.98,155.96,6.41175675]
[1748837905516,10.06,155.98,155.92,6.4135454]
[1748837905707,10.06,155.98,155.94,14.44936701]
[1748837905902,24.50936701,155.98,155.96,26.0]
[1748837907496,30.92046949,155.98,155.94,40.44936701]
[1748837907701,16.47110248,155.98,155.94,40.44936701]
[1748837908103,10.06,155.98,155.94,40.44936701]
[1748837908303,10.06,155.98,155.95,14.44936701]
[1748837910132,10.06,155.98,155.97,40.44936701]
[1748837910337,49.12,155.98,155.97,40.44936701]
[1748837911119,49.12,155.98,155.97,46.86085639]
[1748837914909,10.06,155.98,155.97,46.86085639]
[1748837915109,49.12,155.98,155.97,46.86085639]
[1748837918220,49.12,155.98,155.97,40.44936701]
[1748837918921,49.12,155.98,155.97,46.86085639]
[1748837923827,49.12,155.98,155.97,40.44936701]
[1748837924637,49.12,155.98,155.97,46.86085639]
[1748837937261,49.12,155.98,155.97,40.44936701]
[1748837942255,39.06,155.98,155.97,40.44936701]
[1748837942575,39.06,155.98,155.97,46.86085639]
[1748837946445,39.06,155.98,155.97,40.44936701]
[1748837947058,39.06,155.98,155.97,46.86085639]
[1748837947258,39.06,155.98,155.97,20.86085639]
[1748837948253,39.06,155.98,155.97,14.44936701]
[1748837949262,39.06,155.98,155.97,9.25511574]
[1748837951876,45.47111981,155.98,155.95,9.25511574]
[1748837952648,54.72623555,155.98,155.94,9.25511574]
[1748837953378,59.94197276,155.98,155.94,14.47085295]
[1748837953561,45.47111981,155.98,155.94,14.47085295]
[1748837953877,45.47111981,155.98,155.91,32.41395676]
[1748837954078,45.47111981,155.98,155.94,14.47085295]
[1748837955587,45.47111981,155.98,155.91,32.41395676]
[1748837955759,45.47111981,155.98,155.95,14.47085295]
[1748837958873,59.94197276,155.98,155.94,14.47085295]
[1748837960466,163.37085295,155.97,155.93,14.47085295]
[1748837960665,14.47085295,155.95,155.86,8.06359311]
[1748837961001,14.47085295,155.93,155.89,14.47085295]
[1748837961404,14.47085295,155.93,155.86,32.41589311]
[1748837961569,14.47085295,155.93,155.89,14.47085295]
[1748837962276,6.4135454,155.92,155.89,14.47085295]
[1748837962481,39.06,155.91,155.89,14.47085295]
[1748837963488,17.7524,155.94,155.9,14.47085295]
[1748837963791,39.06,155.93,155.92,14.47085295]
[1748837964303,16.1055,155.94,155.92,14.47085295]
[1748837964304,10.06,155.94,155.92,14.47085295]
[1748837964475,10.06,155.94,155.93,14.47085295]
[1748837964675,49.12,155.94,155.93,14.47085295]
[1748837964889,10.06,155.94,155.93,14.47085295]
[1748837965096,49.12,155.94,155.93,14.47085295]
[1748837966991,49.12,155.94,155.92,14.47085295]
[1748837967374,49.12,155.94,155.88,26.0]
[1748837967582,49.12,155.94,155.92,14.47085295]
[1748837969975,55.53275171,155.94,155.91,14.47085295]
[1748837971606,55.53275171,155.94,155.9,14.47085295]
[1748837971785,49.12,155.94,155.92,14.47085295]
[1748837974185,49.12,155.94,155.91,14.47085295]
[1748837974583,49.12,155.94,155.92,14.47085295]
[1748837975701,10.06,155.94,155.92,14.47085295]
[1748837975902,39.06,155.93,155.92,14.47085295]
[1748837981098,39.06,155.93,155.91,14.47085295]
[1748837981300,39.06,155.93,155.9,14.47085295]
[1748837981719,45.47313427,155.93,155.9,14.47085295]
[1748837984105,45.47313427,155.93,155.91,14.47085295]
[1748837986395,155.31205946,155.96,155.92,14.47085295]
[1748837986606,49.12,155.95,155.93,14.47085295]
[1748837991526,10.06,155.95,155.94,14.47085295]
[1748837992701,10.06,155.95,155.94,20.88357579]
[1748838001533,10.06,155.99,155.94,64.49948289]
[1748838001734,39.16,155.98,155.94,64.49948289]
[1748838001928,39.16,155.98,155.97,14.47085295]
[1748838002234,39.16,155.98,155.97,20.88234233]
[1748838002405,39.16,155.98,155.97,14.47085295]
[1748838002801,39.16,155.98,155.97,20.88234233]
[1748838005203,39.16,155.98,155.97,14.47085295]
[1748838005533,39.16,155.98,155.97,20.88234233]
[1748838006132,10.06,155.99,155.97,20.88234233]
[1748838006337,39.14,155.98,155.97,14.47085295]
[1748838014026,39.14,155.98,155.96,14.47085295]
[1748838014614,39.14,155.98,155.97,14.47085295]
[1748838015312,39.14,155.98,155.94,6.41248475]
[1748838015643,39.14,155.98,155.97,14.47085295]
[1748838023218,39.14,155.98,155.97,9.25766794]
[1748838025112,39.14,155.98,155.96,9.25766794]
[1748838027923,39.14,155.98,155.97,9.25766794]
[1748838034851,10.06,155.99,155.97,9.25766794]
[1748838035058,39.06,155.98,155.97,6.41144215]
[1748838035229,10.06,155.99,155.97,15.66911009]
[1748838035430,10.06,155.99,155.98,9.25766794]
[1748838037332,49.12,155.99,155.98,9.25766794]
[1748838037655,10.06,155.99,155.98,9.25766794]
[1748838037857,49.12,155.99,155.98,9.25766794]
[1748838038563,49.12,155.99,155.98,15.66874628]
[1748838039757,10.06,155.99,155.98,15.66874628]
[1748838049465,49.1,155.99,155.98,15.66874628]
[1748838051562,10.06,155.99,155.98,15.66874628]